{"text_format":"1","workbook":"xlsx","n_sheets":5,"sheets":["Names","Bracket","LBracket","Calc","Streak"],"not_rendered":{"charts":0,"images":0,"macros":1,"external_links":0,"defined_names":0,"comments":0,"pivot_tables":0},"unopened":[],"bounds":{"document_bytes":16777216,"sheet_cells":100000,"rows_first":2000,"rows_last":500,"rows_between":2000,"halvings":0,"cell_chars":16384,"cell_head_chars":4096},"cells_cut":0,"cells_raw":0,"read":"whole","date_system":"1900"}

{"sheet":"Names","index":0,"n_rows":64,"n_cols":2,"rows_kept":64,"cut":false,"hidden":true,"merged":[]}
[{"$f":"Bracket!M8","v":1},52]
[{"$f":"Bracket!M9","v":2},25]
[{"$f":"Bracket!M10","v":3},1]
[{"$f":"Bracket!M11","v":4},30]
[{"$f":"Bracket!M12","v":5},59]
[{"$f":"Bracket!M13","v":6},56]
[{"$f":"Bracket!M14","v":7},64]
[{"$f":"Bracket!M15","v":8},36]
[{"$f":"Bracket!M16","v":9},40]
[{"$f":"Bracket!M17","v":10},42]
[{"$f":"Bracket!M18","v":11},22]
[{"$f":"Bracket!M19","v":12},37]
[{"$f":"Bracket!M20","v":13},2]
[{"$f":"Bracket!M21","v":14},23]
[{"$f":"Bracket!M22","v":15},50]
[{"$f":"Bracket!M23","v":16},12]
[{"$f":"Bracket!M24","v":17},44]
[{"$f":"Bracket!M25","v":18},61]
[{"$f":"Bracket!M26","v":19},21]
[{"$f":"Bracket!M27","v":20},54]
[{"$f":"Bracket!M28","v":21},48]
[{"$f":"Bracket!M29","v":22},58]
[{"$f":"Bracket!M30","v":23},63]
[{"$f":"Bracket!M31","v":24},8]
[{"$f":"Bracket!M32","v":25},47]
[{"$f":"Bracket!M33","v":26},53]
[{"$f":"Bracket!M34","v":27},45]
[{"$f":"Bracket!M35","v":28},9]
[{"$f":"Bracket!M36","v":29},46]
[{"$f":"Bracket!M37","v":30},6]
[{"$f":"Bracket!M38","v":31},18]
[{"$f":"Bracket!M39","v":32},11]
[{"$f":"Bracket!M40","v":33},41]
[{"$f":"Bracket!M41","v":34},3]
[{"$f":"Bracket!M42","v":35},10]
[{"$f":"Bracket!M43","v":36},55]
[{"$f":"Bracket!M44","v":37},27]
[{"$f":"Bracket!M45","v":38},20]
[{"$f":"Bracket!M46","v":39},19]
[{"$f":"Bracket!M47","v":40},14]
[{"$f":"Bracket!M48","v":41},5]
[{"$f":"Bracket!M49","v":42},31]
[{"$f":"Bracket!M50","v":43},4]
[{"$f":"Bracket!M51","v":44},26]
[{"$f":"Bracket!M52","v":45},60]
[{"$f":"Bracket!M53","v":46},32]
[{"$f":"Bracket!M54","v":47},62]
[{"$f":"Bracket!M55","v":48},16]
[{"$f":"Bracket!M56","v":49},24]
[{"$f":"Bracket!M57","v":50},28]
[{"$f":"Bracket!M58","v":51},51]
[{"$f":"Bracket!M59","v":52},39]
[{"$f":"Bracket!M60","v":53},13]
[{"$f":"Bracket!M61","v":54},15]
[{"$f":"Bracket!M62","v":55},33]
[{"$f":"Bracket!M63","v":56},7]
[{"$f":"Bracket!M64","v":57},35]
[{"$f":"Bracket!M65","v":58},34]
[{"$f":"Bracket!M66","v":59},43]
[{"$f":"Bracket!M67","v":60},29]
[{"$f":"Bracket!M68","v":61},57]
[{"$f":"Bracket!M69","v":62},17]
[{"$f":"Bracket!M70","v":63},49]
[{"$f":"Bracket!M71","v":64},38]

{"sheet":"Bracket","index":1,"n_rows":71,"n_cols":14,"rows_kept":71,"cut":false,"hidden":false,"merged":[]}
[]
[]
[]
[]
[]
[]
[null,null,null,null,null,null,null,null,null,null,null,null,"Participants:",{"$f":"COUNTA(M8:M71)","v":64}]
[null,null,null,null,null,null,null,null,null,null,null,null,1]
[null,null,null,null,null,null,null,null,null,null,null,null,2]
[null,null,null,null,null,null,null,null,null,null,null,null,3]
[null,null,null,null,null,null,null,null,null,null,null,null,4]
[null,null,null,null,null,null,null,null,null,null,null,null,5]
[null,null,null,null,null,null,null,null,null,null,null,null,6]
[null,null,null,null,null,null,null,null,null,null,null,null,7]
[null,null,null,null,null,null,null,null,null,null,null,null,8]
[null,null,null,null,null,null,null,null,null,null,null,null,9]
[null,null,null,null,null,null,null,null,null,null,null,null,10]
[null,null,null,null,null,null,null,null,null,null,null,null,11]
[null,null,null,null,null,null,null,null,null,null,null,null,12]
[null,null,null,null,null,null,null,null,null,null,null,null,13]
[null,null,null,null,null,null,null,null,null,null,null,null,14]
[null,null,null,null,null,null,null,null,null,null,null,null,15]
[null,null,null,null,null,null,null,null,null,null,null,null,16]
[null,null,null,null,null,null,null,null,null,null,null,null,{"$f":"M23+1","v":17}]
[null,null,null,null,null,null,null,null,null,null,null,null,{"$f":"M24+1","v":18}]
[null,null,null,null,null,null,null,null,null,null,null,null,19]
[null,null,null,null,null,null,null,null,null,null,null,null,20]
[null,null,null,null,null,null,null,null,null,null,null,null,21]
[null,null,null,null,null,null,null,null,null,null,null,null,22]
[null,null,null,null,null,null,null,null,null,null,null,null,23]
[null,null,null,null,null,null,null,null,null,null,null,null,24]
[null,null,null,null,null,null,null,null,null,null,null,null,25]
[null,null,null,null,null,null,null,null,null,null,null,null,26]
[null,null,null,null,null,null,null,null,null,null,null,null,27]
[null,null,null,null,null,null,null,null,null,null,null,null,28]
[null,null,null,null,null,null,null,null,null,null,null,null,{"$f":"M35+1","v":29}]
[null,null,null,null,null,null,null,null,null,null,null,null,30]
[null,null,null,null,null,null,null,null,null,null,null,null,31]
[null,null,null,null,null,null,null,null,null,null,null,null,{"$f":"M38+1","v":32}]
[null,null,null,null,null,null,null,null,null,null,null,null,{"$f":"M39+1","v":33}]
[null,null,null,null,null,null,null,null,null,null,null,null,34]
[null,null,null,null,null,null,null,null,null,null,null,null,35]
[null,null,null,null,null,null,null,null,null,null,null,null,36]
[null,null,null,null,null,null,null,null,null,null,null,null,37]
[null,null,null,null,null,null,null,null,null,null,null,null,38]
[null,null,null,null,null,null,null,null,null,null,null,null,39]
[null,null,null,null,null,null,null,null,null,null,null,null,40]
[null,null,null,null,null,null,null,null,null,null,null,null,41]
[null,null,null,null,null,null,null,null,null,null,null,null,42]
[null,null,null,null,null,null,null,null,null,null,null,null,43]
[null,null,null,null,null,null,null,null,null,null,null,null,44]
[null,null,null,null,null,null,null,null,null,null,null,null,45]
[null,null,null,null,null,null,null,null,null,null,null,null,46]
[null,null,null,null,null,null,null,null,null,null,null,null,47]
[null,null,null,null,null,null,null,null,null,null,null,null,48]
[null,null,null,null,null,null,null,null,null,null,null,null,49]
[null,null,null,null,null,null,null,null,null,null,null,null,50]
[null,null,null,null,null,null,null,null,null,null,null,null,51]
[null,null,null,null,null,null,null,null,null,null,null,null,52]
[null,null,null,null,null,null,null,null,null,null,null,null,53]
[null,null,null,null,null,null,null,null,null,null,null,null,54]
[null,null,null,null,null,null,null,null,null,null,null,null,55]
[null,null,null,null,null,null,null,null,null,null,null,null,56]
[null,null,null,null,null,null,null,null,null,null,null,null,57]
[null,null,null,null,null,null,null,null,null,null,null,null,58]
[null,null,null,null,null,null,null,null,null,null,null,null,59]
[null,null,null,null,null,null,null,null,null,null,null,null,60]
[null,null,null,null,null,null,null,null,null,null,null,null,61]
[null,null,null,null,null,null,null,null,null,null,null,null,62]
[null,null,null,null,null,null,null,null,null,null,null,null,63]
[null,null,null,null,null,null,null,null,null,null,null,null,64]

{"sheet":"LBracket","index":2,"n_rows":0,"n_cols":0,"rows_kept":0,"cut":false,"hidden":false,"merged":[]}

{"sheet":"Calc","index":3,"n_rows":5,"n_cols":9,"rows_kept":5,"cut":false,"hidden":true,"merged":[]}
[null,null,null,1,1,1,1,1,0]
[null,null,null,33,1,17,1,1]
[null,null,null,65,1,33,1,1]
[null,null,null,97,1,49,1,1]
[null,null,null,16,5,15,7,1]

{"sheet":"Streak","index":4,"n_rows":17,"n_cols":2,"rows_kept":17,"cut":false,"hidden":false,"merged":[]}
["Names","Streaks"]
[1,5]
[3,6]
[10,8]
[14,4]
[19,4]
[20,4]
[25,4]
[27,4]
[30,4]
[36,3]
[41,12]
[52,6]
[55,6]
[56,3]
[59,3]
[64,3]